[Event "Late-Titled-Tuesday-Blitz-May-14-2024"]
[Site "Chess.com"]
[Date "2024.05.14"]
[Round "2"]
[White "SahaNeelash"]
[Black "chess_sharparchitect"]
[Result "1-0"]
[WhiteElo "2731"]
[BlackElo "2355"]
[TimeControl "180+1"]
[EndTime "14:16:55 PDT"]
[Termination "SahaNeelash won by resignation"]

1. d4 {[%clk 0:02:59.9]} 1... Nf6 {[%clk 0:02:59.9]} 2. Bg5 {[%clk 0:02:59.1]}
2... e6 {[%clk 0:02:51]} 3. Nd2 {[%clk 0:02:58.7]} 3... d5 {[%clk 0:02:48.4]} 4.
e3 {[%clk 0:02:58.8]} 4... Nbd7 {[%clk 0:02:41.2]} 5. Bd3 {[%clk 0:02:48]} 5...
h6 {[%clk 0:02:39.1]} 6. Bxf6 {[%clk 0:02:47.8]} 6... Nxf6 {[%clk 0:02:38.2]} 7.
f4 {[%clk 0:02:47.9]} 7... c5 {[%clk 0:02:25.7]} 8. c3 {[%clk 0:02:47.2]} 8...
Bd7 {[%clk 0:02:19.8]} 9. Ngf3 {[%clk 0:02:47.2]} 9... Qb6 {[%clk 0:02:06.8]}
10. Rb1 {[%clk 0:02:24.4]} 10... Bb5 {[%clk 0:01:47.8]} 11. Qe2 {[%clk
0:02:21.2]} 11... Bxd3 {[%clk 0:01:41.1]} 12. Qxd3 {[%clk 0:02:22.1]} 12... Be7
{[%clk 0:01:38.4]} 13. O-O {[%clk 0:02:20]} 13... O-O {[%clk 0:01:37.4]} 14. Ne5
{[%clk 0:02:20.1]} 14... Rac8 {[%clk 0:01:28.8]} 15. Kh1 {[%clk 0:02:12.8]}
15... cxd4 {[%clk 0:01:28.5]} 16. exd4 {[%clk 0:02:13.7]} 16... Qd6 {[%clk
0:01:13.4]} 17. Rbe1 {[%clk 0:02:05.9]} 17... a6 {[%clk 0:01:12.8]} 18. Re2
{[%clk 0:02:04.7]} 18... b5 {[%clk 0:01:08.3]} 19. a3 {[%clk 0:02:04.4]} 19...
Nd7 {[%clk 0:01:06.9]} 20. Rf3 {[%clk 0:02:01.4]} 20... Bf6 {[%clk 0:01:02.4]}
21. Rg3 {[%clk 0:01:57.4]} 21... Qe7 {[%clk 0:00:57.8]} 22. Ng4 {[%clk
0:01:47.2]} 22... Kh8 {[%clk 0:00:54.5]} 23. Rh3 {[%clk 0:01:38.8]} 23... Rfd8
{[%clk 0:00:23.1]} 24. Nf3 {[%clk 0:01:22.3]} 24... Nf8 {[%clk 0:00:21.9]} 25.
f5 {[%clk 0:01:19.3]} 25... Nh7 {[%clk 0:00:20]} 26. fxe6 {[%clk 0:01:16.4]}
26... fxe6 {[%clk 0:00:20]} 27. Nfe5 {[%clk 0:01:15.9]} 27... Bxe5 {[%clk
0:00:17.9]} 28. Nxe5 {[%clk 0:01:16.5]} 28... Qg5 {[%clk 0:00:13.7]} 29. Nf7+
{[%clk 0:01:11]} 1-0

[Event "Late-Titled-Tuesday-Blitz-May-14-2024"]
[Site "Chess.com"]
[Date "2024.05.14"]
[Round "2"]
[White "Eloist"]
[Black "Mikhail_Bryakin"]
[Result "1/2-1/2"]
[WhiteElo "2429"]
[BlackElo "2840"]
[TimeControl "180+1"]
[EndTime "14:17:04 PDT"]
[Termination "Game drawn by stalemate"]

1. e4 {[%clk 0:03:00.9]} 1... g6 {[%clk 0:02:55.4]} 2. d4 {[%clk 0:03:00.3]}
2... Bg7 {[%clk 0:02:55.8]} 3. Nc3 {[%clk 0:02:59.9]} 3... d6 {[%clk 0:02:56.4]}
4. Nf3 {[%clk 0:03:00.2]} 4... Nd7 {[%clk 0:02:56.9]} 5. Be2 {[%clk 0:02:59.7]}
5... e5 {[%clk 0:02:57.5]} 6. O-O {[%clk 0:02:58]} 6... Ne7 {[%clk 0:02:57.2]}
7. Re1 {[%clk 0:02:56.7]} 7... O-O {[%clk 0:02:57.3]} 8. dxe5 {[%clk 0:02:54.2]}
8... Nxe5 {[%clk 0:02:56.8]} 9. Nxe5 {[%clk 0:02:52.8]} 9... Bxe5 {[%clk
0:02:57.7]} 10. f4 {[%clk 0:02:49.5]} 10... Bg7 {[%clk 0:02:57.3]} 11. Bf3
{[%clk 0:02:49]} 11... c6 {[%clk 0:02:55.4]} 12. a4 {[%clk 0:02:46.9]} 12... a5
{[%clk 0:02:54.2]} 13. Be3 {[%clk 0:02:45]} 13... Qc7 {[%clk 0:02:50.2]} 14. Qd2
{[%clk 0:02:44.4]} 14... Be6 {[%clk 0:02:49.7]} 15. Rad1 {[%clk 0:02:43.8]}
15... Rad8 {[%clk 0:02:50.4]} 16. Bd4 {[%clk 0:02:34.9]} 16... Bxd4+ {[%clk
0:02:49]} 17. Qxd4 {[%clk 0:02:35.4]} 17... Rfe8 {[%clk 0:02:49.2]} 18. g4
{[%clk 0:02:30.6]} 18... Bc8 {[%clk 0:02:45]} 19. f5 {[%clk 0:02:14.9]} 19... b6
{[%clk 0:02:36.4]} 20. f6 {[%clk 0:02:09.6]} 20... c5 {[%clk 0:02:35.9]} 21. Qd2
{[%clk 0:02:03.9]} 21... Kh8 {[%clk 0:02:33.6]} 22. fxe7 {[%clk 0:02:01.9]}
22... Qxe7 {[%clk 0:02:33.1]} 23. Nd5 {[%clk 0:01:54.8]} 23... Qe5 {[%clk
0:02:33.7]} 24. Qc3 {[%clk 0:01:52.1]} 24... Qxc3 {[%clk 0:02:33]} 25. bxc3
{[%clk 0:01:45.8]} 25... Bb7 {[%clk 0:02:31.5]} 26. Nxb6 {[%clk 0:01:44]} 26...
Bc6 {[%clk 0:02:31.1]} 27. Kf2 {[%clk 0:01:31.7]} 27... Kg7 {[%clk 0:02:30.1]}
28. Nc4 {[%clk 0:01:23.9]} 28... Bxa4 {[%clk 0:02:29.5]} 29. Nxd6 {[%clk
0:01:23.9]} 29... Rf8 {[%clk 0:02:28.1]} 30. e5 {[%clk 0:01:15.8]} 30... Bxc2
{[%clk 0:02:27.7]} 31. Rd5 {[%clk 0:01:14.2]} 31... a4 {[%clk 0:02:26.6]} 32.
Rxc5 {[%clk 0:01:13.6]} 32... Rb8 {[%clk 0:02:26.7]} 33. Rc7 {[%clk 0:01:11.6]}
33... a3 {[%clk 0:02:24.2]} 34. Ra1 {[%clk 0:01:03]} 34... Rb2 {[%clk
0:02:24.7]} 35. Kg3 {[%clk 0:00:58.6]} 35... a2 {[%clk 0:02:24.5]} 36. Ra7
{[%clk 0:00:57.7]} 36... Bb3 {[%clk 0:02:23.8]} 37. c4 {[%clk 0:00:53.4]} 37...
Rb1 {[%clk 0:02:13.6]} 38. R1xa2 {[%clk 0:00:52.1]} 38... Bxa2 {[%clk 0:02:14]}
39. Rxa2 {[%clk 0:00:52.7]} 39... Re1 {[%clk 0:02:14.1]} 40. Re2 {[%clk
0:00:49.4]} 40... Rc1 {[%clk 0:02:11.6]} 41. Bd5 {[%clk 0:00:46.1]} 41... Rc3+
{[%clk 0:02:10.8]} 42. Kg2 {[%clk 0:00:44.5]} 42... Rc1 {[%clk 0:02:06.4]} 43.
Rf2 {[%clk 0:00:44.3]} 43... f5 {[%clk 0:02:04.6]} 44. exf6+ {[%clk 0:00:44.2]}
44... Kh6 {[%clk 0:02:04.5]} 45. h4 {[%clk 0:00:40.6]} 45... g5 {[%clk 0:01:59]}
46. Nf7+ {[%clk 0:00:32.3]} 46... Rxf7 {[%clk 0:01:57.7]} 47. Bxf7 {[%clk
0:00:32.4]} 47... gxh4 {[%clk 0:01:58.6]} 48. Rf5 {[%clk 0:00:28.9]} 48... h3+
{[%clk 0:01:56.9]} 49. Kxh3 {[%clk 0:00:28.8]} 49... Rc3+ {[%clk 0:01:42.3]} 50.
Kh4 {[%clk 0:00:26.9]} 50... Rh3+ {[%clk 0:01:40.3]} 51. Kxh3 {[%clk 0:00:24]}
1/2-1/2

[Event "Late-Titled-Tuesday-Blitz-May-14-2024"]
[Site "Chess.com"]
[Date "2024.05.14"]
[Round "2"]
[White "zacachess"]
[Black "chessisveryfun1264"]
[Result "0-1"]
[WhiteElo "2363"]
[BlackElo "2554"]
[TimeControl "180+1"]
[EndTime "14:17:06 PDT"]
[Termination "chessisveryfun1264 won by resignation"]

1. e4 {[%clk 0:03:00]} 1... f5 {[%clk 0:02:46.6]} 2. exf5 {[%clk 0:02:59.5]}
2... Nf6 {[%clk 0:02:44.9]} 3. d4 {[%clk 0:02:58.9]} 3... d5 {[%clk 0:02:45.8]}
4. Bd3 {[%clk 0:02:59.1]} 4... c5 {[%clk 0:02:46.4]} 5. c3 {[%clk 0:02:54.2]}
5... Nc6 {[%clk 0:02:43.7]} 6. Nf3 {[%clk 0:02:53.7]} 6... Qb6 {[%clk
0:02:43.6]} 7. O-O {[%clk 0:02:49.6]} 7... Bd7 {[%clk 0:02:35.3]} 8. dxc5 {[%clk
0:02:42.7]} 8... Qxc5 {[%clk 0:02:36.2]} 9. Nbd2 {[%clk 0:02:36.3]} 9... g6
{[%clk 0:02:35.1]} 10. Nb3 {[%clk 0:02:32.9]} 10... Qd6 {[%clk 0:02:34.8]} 11.
fxg6 {[%clk 0:02:32.7]} 11... e5 {[%clk 0:02:35.4]} 12. Re1 {[%clk 0:02:13.9]}
12... e4 {[%clk 0:02:24.1]} 13. g3 {[%clk 0:01:22.1]} 13... O-O-O {[%clk
0:02:23.2]} 14. Bf4 {[%clk 0:01:21.6]} 14... Qe7 {[%clk 0:02:12.7]} 15. Nfd4
{[%clk 0:01:13.8]} 15... hxg6 {[%clk 0:02:11.9]} 16. Bf1 {[%clk 0:01:07.9]}
16... Qh7 {[%clk 0:02:11]} 17. h4 {[%clk 0:01:06]} 17... Be7 {[%clk 0:02:09.7]}
18. Nxc6 {[%clk 0:01:00.2]} 18... Bxc6 {[%clk 0:02:09.3]} 19. Nd4 {[%clk
0:01:00.1]} 19... Nh5 {[%clk 0:02:03.5]} 20. Nxc6 {[%clk 0:00:47.1]} 20... bxc6
{[%clk 0:02:04.4]} 21. Bh3+ {[%clk 0:00:29.5]} 21... Kb7 {[%clk 0:02:01.9]} 22.
Qb3+ {[%clk 0:00:28.3]} 22... Ka8 {[%clk 0:02:02.3]} 23. Qa4 {[%clk 0:00:27.3]}
23... Nxf4 {[%clk 0:01:52.7]} 24. Qxc6+ {[%clk 0:00:24]} 24... Kb8 {[%clk
0:01:53.6]} 25. Qb5+ {[%clk 0:00:14.5]} 25... Kc7 {[%clk 0:01:54.5]} 26. Qa5+
{[%clk 0:00:13.8]} 26... Kd6 {[%clk 0:01:54]} 27. Qa6+ {[%clk 0:00:13.1]} 27...
Ke5 {[%clk 0:01:53.7]} 28. Bf1 {[%clk 0:00:12.8]} 28... Bxh4 {[%clk 0:01:48.6]}
29. gxf4+ {[%clk 0:00:10.9]} 29... Kxf4 {[%clk 0:01:49.5]} 30. Qe2 {[%clk
0:00:09.6]} 30... Ke5 {[%clk 0:01:49.5]} 31. Qg4 {[%clk 0:00:09.2]} 31... Qh5
{[%clk 0:01:43.4]} 32. Qxh5+ {[%clk 0:00:08.4]} 32... Rxh5 {[%clk 0:01:43.3]}
33. Bg2 {[%clk 0:00:09.3]} 33... Rf8 {[%clk 0:01:43.2]} 34. Re2 {[%clk
0:00:08.6]} 34... Rg5 {[%clk 0:01:41.7]} 35. Kf1 {[%clk 0:00:08]} 35... Rf4
{[%clk 0:01:40.8]} 36. c4 {[%clk 0:00:07.8]} 36... Rgf5 {[%clk 0:01:41]} 37.
cxd5 {[%clk 0:00:06.5]} 37... Rxf2+ {[%clk 0:01:41.5]} 38. Rxf2 {[%clk
0:00:07.4]} 38... Rxf2+ {[%clk 0:01:42.2]} 39. Kg1 {[%clk 0:00:08.3]} 39... e3
{[%clk 0:01:42.3]} 40. d6 {[%clk 0:00:07.6]} 40... Rd2 {[%clk 0:01:42]} 41. Re1
{[%clk 0:00:07.4]} 41... Bxe1 {[%clk 0:01:41.1]} 0-1

[Event "Late-Titled-Tuesday-Blitz-May-14-2024"]
[Site "Chess.com"]
[Date "2024.05.14"]
[Round "2"]
[White "schachlana"]
[Black "ACollins05"]
[Result "0-1"]
[WhiteElo "2338"]
[BlackElo "2543"]
[TimeControl "180+1"]
[EndTime "14:17:10 PDT"]
[Termination "ACollins05 won by resignation"]

1. e4 {[%clk 0:02:58.2]} 1... a6 {[%clk 0:02:58.8]} 2. d4 {[%clk 0:02:56.2]}
2... b5 {[%clk 0:02:59.2]} 3. Bd3 {[%clk 0:02:51.9]} 3... Bb7 {[%clk 0:02:59.5]}
4. Nd2 {[%clk 0:02:52.6]} 4... e6 {[%clk 0:02:59.5]} 5. f4 {[%clk 0:02:52.7]}
5... Nf6 {[%clk 0:02:59.2]} 6. Ngf3 {[%clk 0:02:52.7]} 6... c5 {[%clk
0:02:58.9]} 7. c3 {[%clk 0:02:52]} 7... Be7 {[%clk 0:02:58.6]} 8. O-O {[%clk
0:02:52.2]} 8... d6 {[%clk 0:02:58.1]} 9. e5 {[%clk 0:02:51.2]} 9... Nd5 {[%clk
0:02:56.7]} 10. Ne4 {[%clk 0:02:49.4]} 10... cxd4 {[%clk 0:02:54.1]} 11. cxd4
{[%clk 0:02:48.1]} 11... Nb4 {[%clk 0:02:50.7]} 12. Bb1 {[%clk 0:02:35.9]} 12...
Bxe4 {[%clk 0:02:37.9]} 13. Bxe4 {[%clk 0:02:35.3]} 13... d5 {[%clk 0:02:38.6]}
14. Bb1 {[%clk 0:02:34.5]} 14... g6 {[%clk 0:02:39.2]} 15. a3 {[%clk 0:02:33.9]}
15... N4c6 {[%clk 0:02:37.6]} 16. Be3 {[%clk 0:02:30.4]} 16... Nd7 {[%clk
0:02:37.4]} 17. Bd3 {[%clk 0:02:25.4]} 17... Nb6 {[%clk 0:02:35.6]} 18. Rc1
{[%clk 0:02:25.4]} 18... Rc8 {[%clk 0:02:32.3]} 19. Qe2 {[%clk 0:02:15.8]} 19...
Nc4 {[%clk 0:02:19.6]} 20. Bf2 {[%clk 0:02:14.6]} 20... h5 {[%clk 0:02:16.7]}
21. a4 {[%clk 0:02:08.9]} 21... Nb4 {[%clk 0:02:13.5]} 22. axb5 {[%clk
0:02:01.6]} 22... axb5 {[%clk 0:02:13.4]} 23. b3 {[%clk 0:01:58.2]} 23... Nxd3
{[%clk 0:02:10.4]} 24. Qxd3 {[%clk 0:01:59.1]} 24... Na3 {[%clk 0:02:10.2]} 25.
Ra1 {[%clk 0:01:51]} 25... b4 {[%clk 0:02:06]} 26. Rfc1 {[%clk 0:01:49.5]} 26...
O-O {[%clk 0:02:05.3]} 27. h3 {[%clk 0:01:39.3]} 27... Qd7 {[%clk 0:01:57.9]}
28. g4 {[%clk 0:01:33.8]} 28... hxg4 {[%clk 0:01:58.8]} 29. hxg4 {[%clk
0:01:34.7]} 29... Rxc1+ {[%clk 0:01:58.7]} 30. Rxc1 {[%clk 0:01:34.2]} 30... Rc8
{[%clk 0:01:59.2]} 31. Rxc8+ {[%clk 0:01:29.1]} 31... Qxc8 {[%clk 0:02:00.1]}
32. Kg2 {[%clk 0:01:12.5]} 32... Qc1 {[%clk 0:01:47.6]} 33. f5 {[%clk
0:00:59.8]} 33... Qf4 {[%clk 0:01:44.1]} 34. f6 {[%clk 0:00:39.8]} 34... Qxg4+
{[%clk 0:01:43.8]} 35. Bg3 {[%clk 0:00:39.9]} 35... Bf8 {[%clk 0:01:43.3]} 36.
Qa6 {[%clk 0:00:33.7]} 36... Qe4 {[%clk 0:01:33.4]} 37. Bh4 {[%clk 0:00:16.7]}
37... Nc2 {[%clk 0:01:32.5]} 38. Bg5 {[%clk 0:00:13.2]} 38... Nxd4 {[%clk
0:01:27.3]} 39. Qf1 {[%clk 0:00:13.5]} 39... Qg4+ {[%clk 0:01:23.4]} 40. Kh1
{[%clk 0:00:08.7]} 40... Qxf3+ {[%clk 0:01:22.8]} 0-1

[Event "Late-Titled-Tuesday-Blitz-May-14-2024"]
[Site "Chess.com"]
[Date "2024.05.14"]
[Round "2"]
[White "McCarthyStone"]
[Black "noret"]
[Result "1-0"]
[WhiteElo "2448"]
[BlackElo "2074"]
[TimeControl "180+1"]
[EndTime "14:17:12 PDT"]
[Termination "McCarthyStone won by checkmate"]

1. d4 {[%clk 0:03:00.9]} 1... Nf6 {[%clk 0:02:59.4]} 2. c4 {[%clk 0:02:56.4]}
2... g6 {[%clk 0:02:59.5]} 3. Nc3 {[%clk 0:02:55.8]} 3... Bg7 {[%clk 0:02:59.7]}
4. e4 {[%clk 0:02:55.6]} 4... d6 {[%clk 0:02:58.7]} 5. Be2 {[%clk 0:02:55.7]}
5... O-O {[%clk 0:02:58.3]} 6. h4 {[%clk 0:02:56.3]} 6... h5 {[%clk 0:02:49.2]}
7. Bg5 {[%clk 0:02:55]} 7... c5 {[%clk 0:02:42.5]} 8. d5 {[%clk 0:02:50.6]} 8...
Qa5 {[%clk 0:02:33.2]} 9. Qd2 {[%clk 0:02:50.5]} 9... e6 {[%clk 0:02:19.8]} 10.
O-O-O {[%clk 0:02:36.9]} 10... exd5 {[%clk 0:02:14.6]} 11. cxd5 {[%clk
0:02:27.3]} 11... Re8 {[%clk 0:02:08.9]} 12. f3 {[%clk 0:02:26]} 12... Nbd7
{[%clk 0:01:40.1]} 13. g4 {[%clk 0:02:25.6]} 13... Ne5 {[%clk 0:01:24]} 14. gxh5
{[%clk 0:02:09]} 14... Nxh5 {[%clk 0:01:16.3]} 15. f4 {[%clk 0:02:08.9]} 15...
Ng4 {[%clk 0:01:10.9]} 16. Nh3 {[%clk 0:01:44]} 16... a6 {[%clk 0:00:34]} 17.
Rhg1 {[%clk 0:01:42.6]} 17... Ngf6 {[%clk 0:00:29.3]} 18. f5 {[%clk 0:01:40.1]}
18... b5 {[%clk 0:00:16.6]} 19. Nf4 {[%clk 0:01:38.8]} 19... b4 {[%clk
0:00:12.8]} 20. Nb1 {[%clk 0:01:37]} 20... Nxe4 {[%clk 0:00:12.3]} 21. Qc2
{[%clk 0:01:34.3]} 21... Bxf5 {[%clk 0:00:11.2]} 22. Nxh5 {[%clk 0:01:27.5]}
22... gxh5 {[%clk 0:00:07]} 23. Bd3 {[%clk 0:01:20.1]} 23... Qxa2 {[%clk
0:00:05.4]} 24. Bh6 {[%clk 0:01:20.1]} 24... Bg6 {[%clk 0:00:04.8]} 25. Bxg7
{[%clk 0:01:17]} 25... Kxg7 {[%clk 0:00:03.5]} 26. Bxe4 {[%clk 0:01:17.5]} 26...
Re5 {[%clk 0:00:01.6]} 27. Bxg6 {[%clk 0:01:16.5]} 27... Kh8 {[%clk 0:00:00.8]}
28. Bxf7 {[%clk 0:01:10.7]} 28... Rf8 {[%clk 0:00:00.6]} 29. Qg6 {[%clk
0:01:05.7]} 29... Re2 {[%clk 0:00:00.6]} 30. Qh6# {[%clk 0:01:01.9]} 1-0

[Event "Late-Titled-Tuesday-Blitz-May-14-2024"]
[Site "Chess.com"]
[Date "2024.05.14"]
[Round "2"]
[White "ImportedItalianMaple"]
[Black "bubeliang"]
[Result "0-1"]
[WhiteElo "2567"]
[BlackElo "2813"]
[TimeControl "180+1"]
[EndTime "14:17:14 PDT"]
[Termination "bubeliang won on time"]

1. e4 {[%clk 0:03:00.9]} 1... c6 {[%clk 0:02:57.7]} 2. d4 {[%clk 0:03:00.4]}
2... d5 {[%clk 0:02:58.6]} 3. e5 {[%clk 0:03:01]} 3... c5 {[%clk 0:02:58.3]} 4.
dxc5 {[%clk 0:03:00.7]} 4... e6 {[%clk 0:02:58.6]} 5. a3 {[%clk 0:02:59.7]} 5...
Bxc5 {[%clk 0:02:57.3]} 6. Qg4 {[%clk 0:03:00.1]} 6... Ne7 {[%clk 0:02:53.5]} 7.
Nf3 {[%clk 0:02:53.6]} 7... O-O {[%clk 0:02:48.7]} 8. Bd3 {[%clk 0:02:46.6]}
8... f5 {[%clk 0:02:48.6]} 9. Qg3 {[%clk 0:02:32.7]} 9... Ng6 {[%clk 0:02:39.2]}
10. h4 {[%clk 0:02:24.3]} 10... Nd7 {[%clk 0:02:34.2]} 11. b4 {[%clk 0:02:05.3]}
11... Bb6 {[%clk 0:02:26.9]} 12. Bb2 {[%clk 0:02:04.4]} 12... Bc7 {[%clk
0:02:24.1]} 13. Nbd2 {[%clk 0:01:19.7]} 13... f4 {[%clk 0:02:20.8]} 14. Qg5
{[%clk 0:01:20.3]} 14... Qxg5 {[%clk 0:02:16.1]} 15. hxg5 {[%clk 0:01:21.2]}
15... Ndxe5 {[%clk 0:02:14.4]} 16. Nxe5 {[%clk 0:01:19.8]} 16... Bxe5 {[%clk
0:02:13.9]} 17. Bxe5 {[%clk 0:00:58.5]} 17... Nxe5 {[%clk 0:02:14.8]} 18. Bxh7+
{[%clk 0:00:58.9]} 18... Kf7 {[%clk 0:02:15.3]} 19. O-O-O {[%clk 0:00:39.7]}
19... b6 {[%clk 0:02:09.8]} 20. Rde1 {[%clk 0:00:37.8]} 20... Ng4 {[%clk
0:01:46]} 21. Rh4 {[%clk 0:00:37.7]} 21... e5 {[%clk 0:01:46]} 22. Nf3 {[%clk
0:00:29.7]} 22... e4 {[%clk 0:01:42]} 23. Rxg4 {[%clk 0:00:28.4]} 23... Bxg4
{[%clk 0:01:33.8]} 24. Ne5+ {[%clk 0:00:29.2]} 24... Ke6 {[%clk 0:01:32.8]} 25.
Nxg4 {[%clk 0:00:29.4]} 25... Rac8 {[%clk 0:01:33]} 26. f3 {[%clk 0:00:25.5]}
26... e3 {[%clk 0:01:32.6]} 27. Bd3 {[%clk 0:00:24.2]} 27... Rh8 {[%clk
0:01:32.6]} 28. g3 {[%clk 0:00:21.2]} 28... fxg3 {[%clk 0:01:31.1]} 29. Nxe3
{[%clk 0:00:20.9]} 29... Rcf8 {[%clk 0:01:29.5]} 30. Nf5+ {[%clk 0:00:17.9]}
30... Kd7 {[%clk 0:01:27.1]} 31. f4 {[%clk 0:00:13.5]} 31... g2 {[%clk
0:01:25.1]} 32. Bb5+ {[%clk 0:00:04.5]} 32... Kd8 {[%clk 0:01:17.3]} 33. Nxg7
{[%clk 0:00:00.5]} 33... Rh1 {[%clk 0:01:12.6]} 0-1

[Event "Late-Titled-Tuesday-Blitz-May-14-2024"]
[Site "Chess.com"]
[Date "2024.05.14"]
[Round "2"]
[White "angelgab3"]
[Black "DonPreuss"]
[Result "1-0"]
[WhiteElo "2712"]
[BlackElo "2184"]
[TimeControl "180+1"]
[EndTime "14:17:14 PDT"]
[Termination "angelgab3 won by resignation"]

1. e4 {[%clk 0:03:00.9]} 1... Nc6 {[%clk 0:02:52.4]} 2. d4 {[%clk 0:03:00.3]}
2... e5 {[%clk 0:02:52.6]} 3. Nf3 {[%clk 0:03:00.9]} 3... exd4 {[%clk
0:02:48.8]} 4. Nxd4 {[%clk 0:03:00.8]} 4... Bc5 {[%clk 0:02:48.8]} 5. Nb3 {[%clk
0:02:56.6]} 5... Bb6 {[%clk 0:02:40]} 6. Nc3 {[%clk 0:02:56.5]} 6... Nge7 {[%clk
0:02:38.1]} 7. Qe2 {[%clk 0:02:51.5]} 7... O-O {[%clk 0:02:37.5]} 8. Be3 {[%clk
0:02:52.2]} 8... d6 {[%clk 0:02:36.1]} 9. O-O-O {[%clk 0:02:51.9]} 9... f5
{[%clk 0:02:36.3]} 10. f3 {[%clk 0:02:29.3]} 10... f4 {[%clk 0:02:32.4]} 11. Bf2
{[%clk 0:02:26.7]} 11... Ng6 {[%clk 0:02:31.9]} 12. g3 {[%clk 0:02:24.1]} 12...
Nge5 {[%clk 0:02:19.6]} 13. Bg2 {[%clk 0:02:24.1]} 13... Be6 {[%clk 0:02:10.6]}
14. gxf4 {[%clk 0:01:58.5]} 14... Rxf4 {[%clk 0:02:08.5]} 15. Nd5 {[%clk
0:01:53.6]} 15... Bxd5 {[%clk 0:02:00.2]} 16. exd5 {[%clk 0:01:53.5]} 16... Bxf2
{[%clk 0:01:52.9]} 17. Qxf2 {[%clk 0:01:54.4]} 17... Nb4 {[%clk 0:01:30.1]} 18.
Kb1 {[%clk 0:01:53.2]} 18... Qf6 {[%clk 0:01:27.3]} 19. Rhf1 {[%clk 0:01:40.1]}
19... Rf8 {[%clk 0:01:24.7]} 20. Qxa7 {[%clk 0:01:39.7]} 20... Nxf3 {[%clk
0:01:05]} 21. Qxb7 {[%clk 0:01:22.6]} 21... Qf5 {[%clk 0:00:57.5]} 22. Rc1
{[%clk 0:00:58]} 22... Nxd5 {[%clk 0:00:29.8]} 23. Rxf3 {[%clk 0:00:53]} 23...
Rxf3 {[%clk 0:00:29.3]} 24. Nd4 {[%clk 0:00:53.2]} 24... Qg4 {[%clk 0:00:09.2]}
25. Bxf3 {[%clk 0:00:53.1]} 25... Qxd4 {[%clk 0:00:05.5]} 26. Qxd5+ {[%clk
0:00:52.7]} 26... Qxd5 {[%clk 0:00:05.6]} 27. Bxd5+ {[%clk 0:00:53.6]} 27... Kh8
{[%clk 0:00:05.7]} 28. a4 {[%clk 0:00:54.3]} 1-0

[Event "Late-Titled-Tuesday-Blitz-May-14-2024"]
[Site "Chess.com"]
[Date "2024.05.14"]
[Round "2"]
[White "Kiborg95"]
[Black "OriTaichman"]
[Result "0-1"]
[WhiteElo "2896"]
[BlackElo "2632"]
[TimeControl "180+1"]
[EndTime "14:17:15 PDT"]
[Termination "OriTaichman won by resignation"]

1. e4 {[%clk 0:03:00.9]} 1... c5 {[%clk 0:02:58.7]} 2. Nc3 {[%clk 0:03:00.8]}
2... Nc6 {[%clk 0:02:58.7]} 3. Nge2 {[%clk 0:03:01]} 3... g6 {[%clk 0:02:58.4]}
4. d4 {[%clk 0:03:01.2]} 4... cxd4 {[%clk 0:02:58.9]} 5. Nxd4 {[%clk 0:03:02.1]}
5... Bg7 {[%clk 0:02:59.4]} 6. Be3 {[%clk 0:03:02.8]} 6... Nf6 {[%clk
0:02:58.8]} 7. Bc4 {[%clk 0:03:03.5]} 7... O-O {[%clk 0:02:58.7]} 8. Bb3 {[%clk
0:03:04.2]} 8... d6 {[%clk 0:02:58.6]} 9. f3 {[%clk 0:03:04.8]} 9... Bd7 {[%clk
0:02:58.5]} 10. h4 {[%clk 0:03:05.3]} 10... Na5 {[%clk 0:02:46.4]} 11. h5 {[%clk
0:02:59.1]} 11... Qc7 {[%clk 0:02:44.3]} 12. hxg6 {[%clk 0:02:56.9]} 12... hxg6
{[%clk 0:02:38.9]} 13. Qd2 {[%clk 0:02:37.3]} 13... Rfc8 {[%clk 0:02:27.9]} 14.
g4 {[%clk 0:02:21.4]} 14... Nc4 {[%clk 0:02:26.9]} 15. Bxc4 {[%clk 0:02:17.9]}
15... Qxc4 {[%clk 0:02:27.8]} 16. Qh2 {[%clk 0:01:57.3]} 16... Bxg4 {[%clk
0:02:08.2]} 17. O-O-O {[%clk 0:01:09.4]} 17... Bh5 {[%clk 0:02:06.8]} 18. Rdg1
{[%clk 0:01:08.9]} 18... Kf8 {[%clk 0:02:00.7]} 19. Nf5 {[%clk 0:01:01.8]} 19...
gxf5 {[%clk 0:01:54.9]} 20. exf5 {[%clk 0:00:36.6]} 20... b5 {[%clk 0:01:28.7]}
21. Qg3 {[%clk 0:00:25.5]} 21... Bg4 {[%clk 0:00:59]} 22. fxg4 {[%clk
0:00:21.2]} 22... Ne4 {[%clk 0:00:57.8]} 23. Qg2 {[%clk 0:00:04.3]} 23... Nxc3
{[%clk 0:00:56.1]} 24. bxc3 {[%clk 0:00:04.9]} 24... Qxc3 {[%clk 0:00:56.4]} 25.
Bh6 {[%clk 0:00:05.3]} 25... Qb2+ {[%clk 0:00:50]} 26. Kd2 {[%clk 0:00:05.5]}
26... Rxc2+ {[%clk 0:00:48.5]} 0-1